[Event "*** Titled Tuesday Blitz"]
[Site "Chess.com"]
[Date "2019.02.05"]
[Round "1"]
[White "leoo2001"]
[Black "dmosesov"]
[Result "1-0"]
[WhiteElo "2747"]
[BlackElo "2354"]
[TimeControl "180+2"]
[EndTime "13:06:19 PST"]
[Termination "leoo2001 won by resignation"]

1. e4 {[%clk 0:03:01.9]} 1... e5 {[%clk 0:02:58.7]} 2. Nf3 {[%clk 0:03:02.8]}
2... Nf6 {[%clk 0:02:59.9]} 3. Nxe5 {[%clk 0:03:02.1]} 3... d6 {[%clk
0:03:00.6]} 4. Nf3 {[%clk 0:03:03.8]} 4... Nxe4 {[%clk 0:03:01.7]} 5. d3 {[%clk
0:03:05.5]} 5... Nf6 {[%clk 0:03:02.6]} 6. d4 {[%clk 0:03:07.2]} 6... d5 {[%clk
0:03:02.1]} 7. c4 {[%clk 0:03:08.8]} 7... Bb4+ {[%clk 0:03:00.4]} 8. Nc3 {[%clk
0:03:09.9]} 8... Nc6 {[%clk 0:03:01.7]} 9. Bd3 {[%clk 0:03:10.5]} 9... O-O
{[%clk 0:03:02.9]} 10. O-O {[%clk 0:03:11.3]} 10... dxc4 {[%clk 0:03:04.1]} 11.
Bxc4 {[%clk 0:03:12.4]} 11... Bg4 {[%clk 0:03:05.3]} 12. Be3 {[%clk 0:03:12.9]}
12... h6 {[%clk 0:02:43]} 13. h3 {[%clk 0:03:12]} 13... Bh5 {[%clk 0:02:43.9]}
14. g4 {[%clk 0:03:12.1]} 14... Bg6 {[%clk 0:02:45]} 15. Ne5 {[%clk 0:03:13.3]}
15... Nxe5 {[%clk 0:02:34.2]} 16. dxe5 {[%clk 0:03:14.5]} 16... Ne4 {[%clk
0:02:35.9]} 17. Nxe4 {[%clk 0:03:05.4]} 17... Bxe4 {[%clk 0:02:36.8]} 18. Qb3
{[%clk 0:03:04.6]} 18... c5 {[%clk 0:02:30.5]} 19. f3 {[%clk 0:02:57.8]} 19...
Bg6 {[%clk 0:02:24.7]} 20. a3 {[%clk 0:02:51.5]} 20... Ba5 {[%clk 0:02:25.9]}
21. Bxc5 {[%clk 0:02:48.3]} 21... Bb6 {[%clk 0:02:27.1]} 22. Bxb6 {[%clk
0:02:49]} 22... axb6 {[%clk 0:02:29]} 23. Rad1 {[%clk 0:02:48.1]} 23... Qh4
{[%clk 0:02:27.7]} 24. Kg2 {[%clk 0:02:48.1]} 24... Rfe8 {[%clk 0:02:09.6]} 25.
Rfe1 {[%clk 0:02:45.4]} 25... Rad8 {[%clk 0:02:09]} 26. e6 {[%clk 0:02:42.8]}
26... fxe6 {[%clk 0:02:07.6]} 27. Rxe6 {[%clk 0:02:39.5]} 27... Rxe6 {[%clk
0:01:57.3]} 28. Bxe6+ {[%clk 0:02:40]} 28... Kh7 {[%clk 0:01:57.9]} 29. Bc4
{[%clk 0:02:25.1]} 29... Rxd1 {[%clk 0:01:47.6]} 30. Qxd1 {[%clk 0:02:25.8]}
30... Qf6 {[%clk 0:01:49.5]} 31. Qd2 {[%clk 0:02:25.1]} 31... Kh8 {[%clk
0:01:47.6]} 32. b4 {[%clk 0:02:24.1]} 32... Qc6 {[%clk 0:01:45.5]} 33. Qd8+
{[%clk 0:02:17.4]} 33... Qe8 {[%clk 0:01:38.9]} 34. Qxe8+ {[%clk 0:02:18]} 34...
Bxe8 {[%clk 0:01:40.7]} 35. Bd5 {[%clk 0:02:19.6]} 35... g5 {[%clk 0:01:36.2]}
36. Bxb7 {[%clk 0:02:20.5]} 36... Kg7 {[%clk 0:01:38.1]} 37. Kg3 {[%clk
0:02:18.4]} 37... Kf6 {[%clk 0:01:39.3]} 38. f4 {[%clk 0:02:19.5]} 38... Bb5
{[%clk 0:01:38.6]} 39. h4 {[%clk 0:02:20.3]} 39... Bd3 {[%clk 0:01:31.7]} 40. a4
{[%clk 0:02:18.2]} 40... Ke7 {[%clk 0:01:25.9]} 41. fxg5 {[%clk 0:02:13.5]}
41... hxg5 {[%clk 0:01:27.7]} 42. h5 {[%clk 0:02:14.8]} 42... Kd6 {[%clk
0:01:27.6]} 43. Kf3 {[%clk 0:02:13.6]} 43... Ke5 {[%clk 0:01:28.7]} 44. a5
{[%clk 0:02:11.2]} 44... bxa5 {[%clk 0:01:29.6]} 45. bxa5 {[%clk 0:02:12.7]}
45... Kd6 {[%clk 0:01:26.2]} 46. h6 {[%clk 0:02:12.7]} 1-0

[Event "*** Titled Tuesday Blitz"]
[Site "Chess.com"]
[Date "2019.02.05"]
[Round "1"]
[White "pultineviciuspaulius"]
[Black "jamengrand"]
[Result "1-0"]
[WhiteElo "2635"]
[BlackElo "2282"]
[TimeControl "180+2"]
[EndTime "13:06:30 PST"]
[Termination "pultineviciuspaulius won by resignation"]

1. d4 {[%clk 0:03:01.9]} 1... Nf6 {[%clk 0:02:57.2]} 2. Nf3 {[%clk 0:03:03]}
2... e6 {[%clk 0:02:56.6]} 3. Bf4 {[%clk 0:03:03.9]} 3... b6 {[%clk 0:02:56.1]}
4. Nbd2 {[%clk 0:03:00.6]} 4... Bb7 {[%clk 0:02:56.6]} 5. e3 {[%clk 0:02:59.3]}
5... Bd6 {[%clk 0:02:57]} 6. Bg3 {[%clk 0:02:58]} 6... O-O {[%clk 0:02:43]} 7.
Bd3 {[%clk 0:02:59.2]} 7... Nc6 {[%clk 0:02:28.6]} 8. c3 {[%clk 0:02:59.5]} 8...
Qe7 {[%clk 0:02:29.5]} 9. Ne5 {[%clk 0:02:58.9]} 9... Bxe5 {[%clk 0:02:28.8]}
10. dxe5 {[%clk 0:02:59.3]} 10... Ne8 {[%clk 0:02:28.4]} 11. h4 {[%clk
0:02:59.6]} 11... f6 {[%clk 0:02:27.9]} 12. exf6 {[%clk 0:02:58.3]} 12... Nxf6
{[%clk 0:02:27.9]} 13. Bxc7 {[%clk 0:02:56.7]} 13... d6 {[%clk 0:02:28.3]} 14.
Bxd6 {[%clk 0:02:58.1]} 14... Qxd6 {[%clk 0:02:28.9]} 15. Nf3 {[%clk 0:02:53.9]}
15... Rad8 {[%clk 0:02:28.4]} 16. Nd4 {[%clk 0:02:51]} 16... Ne5 {[%clk
0:02:28.3]} 17. Be2 {[%clk 0:02:46.3]} 17... Bxg2 {[%clk 0:02:27.9]} 18. Rg1
{[%clk 0:02:46.9]} 18... Bb7 {[%clk 0:02:27.6]} 19. Qa4 {[%clk 0:02:45.4]} 19...
Ne4 {[%clk 0:02:22.5]} 20. f4 {[%clk 0:02:44.2]} 20... Nf7 {[%clk 0:02:14.8]}
21. O-O-O {[%clk 0:02:45.1]} 21... Nc5 {[%clk 0:02:15.2]} 22. Qa3 {[%clk
0:02:41.7]} 22... Qe7 {[%clk 0:02:11.9]} 23. Bc4 {[%clk 0:02:38.2]} 23... Kh8
{[%clk 0:02:12.9]} 24. Bxe6 {[%clk 0:02:31.7]} 24... Nh6 {[%clk 0:01:59.7]} 25.
f5 {[%clk 0:02:29.5]} 25... Qxh4 {[%clk 0:01:59]} 26. Qxa7 {[%clk 0:02:27.6]}
26... Qe4 {[%clk 0:01:52.6]} 27. Qxb6 {[%clk 0:02:27.6]} 27... Qxe3+ {[%clk
0:01:51.9]} 28. Kb1 {[%clk 0:02:28.2]} 28... Be4+ {[%clk 0:01:52]} 29. Ka1
{[%clk 0:02:28.8]} 29... Nxe6 {[%clk 0:01:49.1]} 30. Qxe6 {[%clk 0:02:24.1]}
30... Rde8 {[%clk 0:01:48.5]} 31. Qd7 {[%clk 0:02:24.8]} 31... Nf7 {[%clk
0:01:37.9]} 32. Rde1 {[%clk 0:02:02.4]} 32... Qf4 {[%clk 0:01:32]} 33. Ne6
{[%clk 0:02:00.2]} 33... Qxf5 {[%clk 0:01:31.7]} 34. Nxf8 {[%clk 0:02:01.1]}
34... Qxd7 {[%clk 0:01:29.2]} 35. Nxd7 {[%clk 0:02:01.2]} 35... Nd6 {[%clk
0:01:21.1]} 36. Nc5 {[%clk 0:02:01.3]} 36... h5 {[%clk 0:01:20.1]} 37. Nxe4
{[%clk 0:01:57.4]} 37... Nxe4 {[%clk 0:01:18.2]} 38. a4 {[%clk 0:01:58.3]} 38...
h4 {[%clk 0:01:13.8]} 39. a5 {[%clk 0:01:59.2]} 39... g5 {[%clk 0:01:11.6]} 40.
a6 {[%clk 0:02:00]} 40... Kg7 {[%clk 0:01:10.9]} 41. a7 {[%clk 0:02:00.6]} 41...
Ra8 {[%clk 0:01:10.5]} 42. Rxe4 {[%clk 0:02:01.3]} 42... Rxa7+ {[%clk 0:01:12]}
43. Kb1 {[%clk 0:02:02.8]} 43... Kg6 {[%clk 0:01:13.1]} 44. Rxh4 {[%clk
0:02:03.2]} 44... Re7 {[%clk 0:01:13.2]} 45. Rhg4 {[%clk 0:02:05.1]} 45... Re5
{[%clk 0:01:14.1]} 46. b4 {[%clk 0:02:06.6]} 46... Kf6 {[%clk 0:01:15.2]} 47.
Rxg5 {[%clk 0:02:07.3]} 47... Re3 {[%clk 0:01:14.9]} 48. Kb2 {[%clk 0:02:07.8]}
1-0

[Event "*** Titled Tuesday Blitz"]
[Site "Chess.com"]
[Date "2019.02.05"]
[Round "1"]
[White "kintoho"]
[Black "chesstatour"]
[Result "1-0"]
[WhiteElo "2496"]
[BlackElo "2023"]
[TimeControl "180+2"]
[EndTime "13:06:37 PST"]
[Termination "kintoho won by resignation"]

1. e4 {[%clk 0:03:01.9]} 1... c6 {[%clk 0:03:00.7]} 2. d4 {[%clk 0:03:02.4]}
2... d5 {[%clk 0:03:01.7]} 3. e5 {[%clk 0:03:03.8]} 3... c5 {[%clk 0:03:02.7]}
4. c4 {[%clk 0:03:04.6]} 4... cxd4 {[%clk 0:03:02]} 5. Qxd4 {[%clk 0:03:05.3]}
5... Nc6 {[%clk 0:02:48.7]} 6. Qxd5 {[%clk 0:03:05.8]} 6... Qxd5 {[%clk
0:02:49.3]} 7. cxd5 {[%clk 0:03:06.9]} 7... Nxe5 {[%clk 0:02:50.4]} 8. Bf4
{[%clk 0:03:04.2]} 8... Nd7 {[%clk 0:02:42.3]} 9. Nc3 {[%clk 0:03:04.3]} 9... g6
{[%clk 0:02:43.3]} 10. Nb5 {[%clk 0:03:04.8]} 10... Kd8 {[%clk 0:02:24.7]} 11.
O-O-O {[%clk 0:03:05.1]} 11... Bh6 {[%clk 0:02:20.9]} 12. Ne2 {[%clk 0:03:00]}
12... a6 {[%clk 0:02:07.2]} 13. Nbc3 {[%clk 0:02:57.8]} 13... Bxf4+ {[%clk
0:02:01.8]} 14. Nxf4 {[%clk 0:02:58.5]} 14... Ngf6 {[%clk 0:02:01.3]} 15. f3
{[%clk 0:02:43.4]} 15... b6 {[%clk 0:01:40.2]} 16. d6 {[%clk 0:02:39.9]} 16...
e6 {[%clk 0:01:38.2]} 17. Bd3 {[%clk 0:02:34.2]} 17... Nc5 {[%clk 0:01:32]} 18.
Bc2 {[%clk 0:02:34.5]} 18... Bd7 {[%clk 0:01:28.2]} 19. b4 {[%clk 0:02:34.6]}
19... Nb7 {[%clk 0:01:26.8]} 20. Rd2 {[%clk 0:02:34.9]} 20... Rc8 {[%clk
0:01:22.1]} 21. Kb2 {[%clk 0:02:34.8]} 21... Rc6 {[%clk 0:00:38.5]} 22. Rhd1
{[%clk 0:02:28.6]} 22... Rc4 {[%clk 0:00:16.6]} 23. Nd3 {[%clk 0:02:24.9]} 23...
Nd5 {[%clk 0:00:11.1]} 24. Nxd5 {[%clk 0:02:20.9]} 24... exd5 {[%clk 0:00:10]}
25. Ne5 {[%clk 0:02:17.3]} 25... Rxb4+ {[%clk 0:00:10.8]} 26. Ka3 {[%clk
0:02:17.9]} 26... Rf4 {[%clk 0:00:10.8]} 27. Rxd5 {[%clk 0:02:13.6]} 27... Re8
{[%clk 0:00:10]} 28. g3 {[%clk 0:02:13.3]} 28... Rf6 {[%clk 0:00:09.9]} 29. f4
{[%clk 0:02:13.8]} 29... Rfe6 {[%clk 0:00:09.9]} 30. Nc4 {[%clk 0:02:07.8]}
30... b5 {[%clk 0:00:09.7]} 31. Nb6 {[%clk 0:02:08.6]} 31... Bc6 {[%clk
0:00:10.3]} 32. R5d2 {[%clk 0:02:07.3]} 32... Re4 {[%clk 0:00:07.2]} 33. Bxe4
{[%clk 0:02:07.3]} 33... Rxe4 {[%clk 0:00:07.3]} 34. Rd4 {[%clk 0:02:06.6]}
34... Re3+ {[%clk 0:00:07.4]} 35. R1d3 {[%clk 0:02:07.5]} 35... Re6 {[%clk
0:00:07.6]} 36. Nd5 {[%clk 0:02:01.9]} 36... Nxd6 {[%clk 0:00:07.2]} 37. Nb4
{[%clk 0:02:02.4]} 37... Ke7 {[%clk 0:00:07]} 38. Nxc6+ {[%clk 0:02:03.1]} 1-0

[Event "*** Titled Tuesday Blitz"]
[Site "Chess.com"]
[Date "2019.02.05"]
[Round "1"]
[White "HrvojeZagreb"]
[Black "Alopekos"]
[Result "1-0"]
[WhiteElo "2128"]
[BlackElo "2497"]
[TimeControl "180+2"]
[EndTime "13:06:40 PST"]
[Termination "HrvojeZagreb won by resignation"]

1. d4 {[%clk 0:03:01.5]} 1... Nf6 {[%clk 0:03:00.9]} 2. Bf4 {[%clk 0:03:02.3]}
2... e6 {[%clk 0:03:01.7]} 3. e3 {[%clk 0:03:02.6]} 3... Be7 {[%clk 0:03:01.5]}
4. Bd3 {[%clk 0:03:02.8]} 4... b6 {[%clk 0:02:59.1]} 5. Nf3 {[%clk 0:03:03.1]}
5... Bb7 {[%clk 0:03:00.2]} 6. Nbd2 {[%clk 0:03:01.1]} 6... c5 {[%clk 0:02:59]}
7. c3 {[%clk 0:03:01.7]} 7... O-O {[%clk 0:02:58.9]} 8. h4 {[%clk 0:03:01.1]}
8... d6 {[%clk 0:02:46.5]} 9. Qe2 {[%clk 0:02:59.7]} 9... Nc6 {[%clk 0:02:43.7]}
10. Ng5 {[%clk 0:02:49.1]} 10... h6 {[%clk 0:02:32.8]} 11. O-O-O {[%clk
0:02:40]} 11... Rc8 {[%clk 0:02:22.8]} 12. Kb1 {[%clk 0:02:39.9]} 12... a6
{[%clk 0:01:16.8]} 13. Nde4 {[%clk 0:02:32.9]} 13... Nd5 {[%clk 0:01:14.3]} 14.
dxc5 {[%clk 0:02:18.3]} 14... bxc5 {[%clk 0:01:10.8]} 15. Nxd6 {[%clk
0:02:00.1]} 15... Nxf4 {[%clk 0:00:14.4]} 16. exf4 {[%clk 0:01:53.2]} 16... Bxd6
{[%clk 0:00:15.6]} 17. Bh7+ {[%clk 0:01:37.7]} 17... Kh8 {[%clk 0:00:16.4]} 18.
Qh5 {[%clk 0:01:39]} 18... Qf6 {[%clk 0:00:16.1]} 19. g3 {[%clk 0:01:36.5]}
19... Ne7 {[%clk 0:00:05.4]} 20. Rxd6 {[%clk 0:01:35.5]} 20... Bxh1 {[%clk
0:00:05.5]} 21. Bc2 {[%clk 0:01:35.4]} 21... Rcd8 {[%clk 0:00:02.9]} 22. Rxd8
{[%clk 0:01:31.2]} 22... Rxd8 {[%clk 0:00:04]} 23. Nxf7+ {[%clk 0:01:32.4]}
23... Kg8 {[%clk 0:00:05.3]} 24. Nxd8 {[%clk 0:01:33.2]} 24... Nf5 {[%clk
0:00:03.5]} 25. Qe8+ {[%clk 0:01:31.2]} 25... Kh7 {[%clk 0:00:04.9]} 26. g4
{[%clk 0:01:31.3]} 26... Qxh4 {[%clk 0:00:03.8]} 27. Nxe6 {[%clk 0:01:28.9]}
27... Bd5 {[%clk 0:00:03.7]} 28. Bxf5+ {[%clk 0:01:28.8]} 1-0

[Event "*** Titled Tuesday Blitz"]
[Site "Chess.com"]
[Date "2019.02.05"]
[Round "1"]
[White "Shant_Sargsyan"]
[Black "Godzillator"]
[Result "1-0"]
[WhiteElo "2817"]
[BlackElo "2399"]
[TimeControl "180+2"]
[EndTime "13:06:41 PST"]
[Termination "Shant_Sargsyan won by resignation"]

1. d4 {[%clk 0:03:01.9]} 1... d5 {[%clk 0:03:00.4]} 2. Nf3 {[%clk 0:02:57.1]}
2... Nf6 {[%clk 0:03:00.5]} 3. c4 {[%clk 0:02:58.2]} 3... c6 {[%clk 0:03:01.6]}
4. Nc3 {[%clk 0:02:58.6]} 4... a6 {[%clk 0:03:02.2]} 5. c5 {[%clk 0:02:58.8]}
5... Bg4 {[%clk 0:03:02.2]} 6. Ne5 {[%clk 0:02:56.6]} 6... Bf5 {[%clk
0:03:03.2]} 7. Bf4 {[%clk 0:02:57.6]} 7... Nbd7 {[%clk 0:03:03.4]} 8. e3 {[%clk
0:02:58.8]} 8... Nxe5 {[%clk 0:03:04.3]} 9. Bxe5 {[%clk 0:03:00.7]} 9... Nd7
{[%clk 0:03:02.4]} 10. Bg3 {[%clk 0:03:01.8]} 10... e5 {[%clk 0:03:03.2]} 11.
Be2 {[%clk 0:03:02]} 11... Be7 {[%clk 0:03:04.2]} 12. O-O {[%clk 0:03:02.3]}
12... O-O {[%clk 0:03:05.1]} 13. b4 {[%clk 0:03:03.9]} 13... Bf6 {[%clk
0:03:04.9]} 14. a4 {[%clk 0:03:03.3]} 14... exd4 {[%clk 0:03:04.3]} 15. exd4
{[%clk 0:03:05.2]} 15... Re8 {[%clk 0:03:05.6]} 16. Re1 {[%clk 0:02:59.5]} 16...
g6 {[%clk 0:02:57.7]} 17. Qd2 {[%clk 0:02:58.1]} 17... Bg7 {[%clk 0:02:56]} 18.
Bf1 {[%clk 0:02:56.7]} 18... Qf6 {[%clk 0:02:55.3]} 19. Red1 {[%clk 0:02:55.2]}
19... Qe7 {[%clk 0:02:48]} 20. b5 {[%clk 0:02:50.3]} 20... axb5 {[%clk
0:02:46.1]} 21. axb5 {[%clk 0:02:52.2]} 21... Rxa1 {[%clk 0:02:46.2]} 22. Rxa1
{[%clk 0:02:54.1]} 22... Qf6 {[%clk 0:02:45.4]} 23. Rd1 {[%clk 0:02:44.9]} 23...
Nxc5 {[%clk 0:02:44]} 24. Nxd5 {[%clk 0:02:37.9]} 24... cxd5 {[%clk 0:02:32.5]}
25. dxc5 {[%clk 0:02:36.2]} 25... Rd8 {[%clk 0:02:18.3]} 26. Qa5 {[%clk
0:02:13.5]} 26... h5 {[%clk 0:02:10.1]} 27. h3 {[%clk 0:02:04.2]} 27... Kh7
{[%clk 0:02:02.1]} 28. c6 {[%clk 0:01:57.5]} 28... bxc6 {[%clk 0:02:00.9]} 29.
bxc6 {[%clk 0:01:59.4]} 29... h4 {[%clk 0:01:53.5]} 30. Bh2 {[%clk 0:01:56.8]}
30... Bc8 {[%clk 0:01:43.3]} 31. c7 {[%clk 0:01:51]} 31... Re8 {[%clk
0:01:43.6]} 32. Qxd5 {[%clk 0:01:50.6]} 32... Qc3 {[%clk 0:01:37.5]} 33. Qd8
{[%clk 0:01:35.5]} 33... Qc6 {[%clk 0:01:28.5]} 34. Qxh4+ {[%clk 0:01:31.4]}
34... Kg8 {[%clk 0:01:28.8]} 35. Rd8 {[%clk 0:01:30.3]} 35... Bf8 {[%clk
0:01:22.7]} 36. Rxe8 {[%clk 0:01:30.9]} 36... Qxe8 {[%clk 0:01:23.7]} 37. Qd8
{[%clk 0:01:31.8]} 37... Qe6 {[%clk 0:01:24.7]} 38. Bd6 {[%clk 0:01:23.6]} 38...
Qxd6 {[%clk 0:01:20.9]} 39. Qxc8 {[%clk 0:01:25]} 39... Kg7 {[%clk 0:01:17.6]}
40. Qd8 {[%clk 0:01:18.6]} 40... Qf4 {[%clk 0:01:17.5]} 41. c8=Q {[%clk
0:01:17.4]} 1-0

[Event "*** Titled Tuesday Blitz"]
[Site "Chess.com"]
[Date "2019.02.05"]
[Round "1"]
[White "Entilza"]
[Black "Rodalquilar"]
[Result "0-1"]
[WhiteElo "2219"]
[BlackElo "2587"]
[TimeControl "180+2"]
[EndTime "13:06:43 PST"]
[Termination "Rodalquilar won by resignation"]

1. d4 {[%clk 0:03:00.4]} 1... d5 {[%clk 0:02:50.1]} 2. c4 {[%clk 0:03:00.4]}
2... dxc4 {[%clk 0:02:52]} 3. Nf3 {[%clk 0:02:58.3]} 3... Nf6 {[%clk 0:02:52.7]}
4. e3 {[%clk 0:02:58.4]} 4... g6 {[%clk 0:02:54]} 5. Bxc4 {[%clk 0:02:59.2]}
5... Bg7 {[%clk 0:02:55.6]} 6. O-O {[%clk 0:03:00.2]} 6... O-O {[%clk
0:02:56.7]} 7. Nc3 {[%clk 0:03:00.8]} 7... Ne8 {[%clk 0:02:58]} 8. h3 {[%clk
0:02:54.9]} 8... Nd6 {[%clk 0:02:58.3]} 9. Bb3 {[%clk 0:02:54.7]} 9... b5 {[%clk
0:02:59.4]} 10. a3 {[%clk 0:02:50.9]} 10... Bb7 {[%clk 0:02:56.9]} 11. Qe2
{[%clk 0:02:48.2]} 11... a5 {[%clk 0:02:56.9]} 12. Rd1 {[%clk 0:02:39.2]} 12...
b4 {[%clk 0:02:55.4]} 13. axb4 {[%clk 0:02:39.3]} 13... axb4 {[%clk 0:02:57.3]}
14. Rxa8 {[%clk 0:02:38.5]} 14... Bxa8 {[%clk 0:02:59.2]} 15. Na2 {[%clk
0:02:32.7]} 15... Nc6 {[%clk 0:02:59.8]} 16. Bd2 {[%clk 0:02:33.2]} 16... Qb8
{[%clk 0:02:57.1]} 17. Qe1 {[%clk 0:02:32.7]} 17... Na5 {[%clk 0:02:55.8]} 18.
Ba4 {[%clk 0:02:23.1]} 18... Nac4 {[%clk 0:02:49]} 19. b3 {[%clk 0:02:16.3]}
19... Nb2 {[%clk 0:02:44.4]} 20. Rb1 {[%clk 0:02:13.9]} 20... Nxa4 {[%clk
0:02:24.1]} 21. bxa4 {[%clk 0:02:15.8]} 21... b3 {[%clk 0:02:25.6]} 22. Nc1
{[%clk 0:02:15.2]} 22... b2 {[%clk 0:02:22.9]} 23. Nd3 {[%clk 0:02:14.1]} 23...
Nc4 {[%clk 0:02:23.9]} 24. e4 {[%clk 0:02:04.6]} 24... Qb3 {[%clk 0:02:19.9]}
25. Nc5 {[%clk 0:02:02]} 25... Qc2 {[%clk 0:02:08.2]} 26. Bc3 {[%clk 0:02:01.2]}
26... Rb8 {[%clk 0:01:58.1]} 27. a5 {[%clk 0:02:00.8]} 27... Na3 {[%clk
0:01:55.6]} 28. Rxb2 {[%clk 0:01:50]} 28... Rxb2 {[%clk 0:01:55.9]} 29. Bxb2
{[%clk 0:01:49.5]} 29... Qxb2 {[%clk 0:01:57.8]} 30. Qd1 {[%clk 0:01:42]} 30...
Nc2 {[%clk 0:01:39.3]} 31. d5 {[%clk 0:01:39.6]} 31... Nd4 {[%clk 0:01:24.8]}
32. Nd3 {[%clk 0:01:29.9]} 32... Qa2 {[%clk 0:01:11.6]} 33. Nxd4 {[%clk
0:01:09.2]} 33... Bxd4 {[%clk 0:01:13.5]} 34. Qg4 {[%clk 0:01:09.2]} 34... Qb1+
{[%clk 0:01:04.6]} 35. Kh2 {[%clk 0:01:08.7]} 35... Qxd3 {[%clk 0:01:05.7]} 36.
Qc8+ {[%clk 0:01:07.8]} 36... Kg7 {[%clk 0:01:06.9]} 0-1

[Event "*** Titled Tuesday Blitz"]
[Site "Chess.com"]
[Date "2019.02.05"]
[Round "1"]
[White "NikolasTheiss"]
[Black "Babbelbox"]
[Result "1-0"]
[WhiteElo "2203"]
[BlackElo "2538"]
[TimeControl "180+2"]
[EndTime "13:06:46 PST"]
[Termination "NikolasTheiss won by resignation"]

1. e4 {[%clk 0:03:01.9]} 1... e6 {[%clk 0:03:00.8]} 2. d3 {[%clk 0:03:01.2]}
2... d5 {[%clk 0:03:02.7]} 3. Nd2 {[%clk 0:03:02.7]} 3... Nf6 {[%clk 0:02:57.7]}
4. g3 {[%clk 0:02:59.5]} 4... b6 {[%clk 0:02:58.8]} 5. Bg2 {[%clk 0:03:00.6]}
5... dxe4 {[%clk 0:02:59]} 6. Nxe4 {[%clk 0:02:57.4]} 6... Nxe4 {[%clk
0:02:53.1]} 7. Bxe4 {[%clk 0:02:57.9]} 7... c6 {[%clk 0:02:54.5]} 8. Ne2 {[%clk
0:02:53.8]} 8... Bd6 {[%clk 0:02:54.6]} 9. O-O {[%clk 0:02:53.9]} 9... O-O
{[%clk 0:02:54.4]} 10. b3 {[%clk 0:02:51.8]} 10... Be5 {[%clk 0:02:40.3]} 11. d4
{[%clk 0:02:46.9]} 11... Bf6 {[%clk 0:02:41.5]} 12. c4 {[%clk 0:02:43.5]} 12...
Bb7 {[%clk 0:02:41.5]} 13. Bb2 {[%clk 0:02:31.9]} 13... Nd7 {[%clk 0:02:38.8]}
14. Nf4 {[%clk 0:02:25.7]} 14... Qc7 {[%clk 0:02:37.4]} 15. Nh5 {[%clk
0:02:09.3]} 15... Be7 {[%clk 0:02:37.4]} 16. d5 {[%clk 0:01:15.4]} 16... cxd5
{[%clk 0:02:13.3]} 17. cxd5 {[%clk 0:01:10]} 17... exd5 {[%clk 0:02:06.5]} 18.
Nxg7 {[%clk 0:00:28.5]} 18... dxe4 {[%clk 0:01:54.7]} 19. Nf5 {[%clk 0:00:29.4]}
19... Ne5 {[%clk 0:01:24.1]} 20. Rc1 {[%clk 0:00:07.7]} 20... Qb8 {[%clk
0:01:13.5]} 21. Nxe7+ {[%clk 0:00:07.7]} 21... Kh8 {[%clk 0:01:14.3]} 22. Qh5
{[%clk 0:00:08.5]} 22... f6 {[%clk 0:01:09.3]} 23. Bxe5 {[%clk 0:00:04.1]} 23...
Qxe5 {[%clk 0:01:09.3]} 24. Ng6+ {[%clk 0:00:05.5]} 24... Kg7 {[%clk 0:01:08.5]}
25. Nxe5 {[%clk 0:00:07.4]} 25... fxe5 {[%clk 0:01:09.1]} 26. Rc7+ {[%clk
0:00:08.9]} 1-0

[Event "*** Titled Tuesday Blitz"]
[Site "Chess.com"]
[Date "2019.02.05"]
[Round "1"]
[White "Tolya2"]
[Black "salomez"]
[Result "1-0"]
[WhiteElo "2525"]
[BlackElo "2123"]
[TimeControl "180+2"]
[EndTime "13:06:48 PST"]
[Termination "Tolya2 won on time"]

1. Nf3 {[%clk 0:03:00.8]} 1... Nf6 {[%clk 0:02:59.3]} 2. d4 {[%clk 0:03:01.1]}
2... g6 {[%clk 0:02:59.9]} 3. g3 {[%clk 0:03:01.9]} 3... Bg7 {[%clk 0:03:00.6]}
4. Bg2 {[%clk 0:03:03]} 4... d5 {[%clk 0:03:01.6]} 5. O-O {[%clk 0:03:03.6]}
5... O-O {[%clk 0:03:03]} 6. c4 {[%clk 0:03:04.3]} 6... dxc4 {[%clk 0:03:04.2]}
7. Na3 {[%clk 0:03:04]} 7... Nc6 {[%clk 0:03:04.3]} 8. Nxc4 {[%clk 0:03:03.6]}
8... Be6 {[%clk 0:03:05.3]} 9. b3 {[%clk 0:03:02.7]} 9... Bd5 {[%clk 0:03:06.8]}
10. Bb2 {[%clk 0:03:02.8]} 10... a5 {[%clk 0:03:08.2]} 11. Ne3 {[%clk
0:03:00.8]} 11... Be4 {[%clk 0:03:06.4]} 12. a3 {[%clk 0:03:01]} 12... Qc8
{[%clk 0:02:41.6]} 13. Rc1 {[%clk 0:02:58.6]} 13... h6 {[%clk 0:02:36.5]} 14.
Nc4 {[%clk 0:02:57]} 14... Rd8 {[%clk 0:02:29.9]} 15. e3 {[%clk 0:02:57.5]}
15... Qe6 {[%clk 0:02:27.2]} 16. Qe2 {[%clk 0:02:57.3]} 16... g5 {[%clk
0:02:25.4]} 17. Rfe1 {[%clk 0:02:49.6]} 17... g4 {[%clk 0:01:55.2]} 18. Nfe5
{[%clk 0:02:45.4]} 18... Bxg2 {[%clk 0:01:54.6]} 19. Kxg2 {[%clk 0:02:46.2]}
19... b5 {[%clk 0:01:41.1]} 20. Nd2 {[%clk 0:02:20.9]} 20... Nxe5 {[%clk
0:01:18.5]} 21. dxe5 {[%clk 0:02:21.7]} 21... Ne8 {[%clk 0:00:30.3]} 22. Ne4
{[%clk 0:02:10.8]} 22... Qd5 {[%clk 0:00:28.4]} 23. Qxg4 {[%clk 0:02:09.5]}
23... h5 {[%clk 0:00:10.6]} 24. Qf3 {[%clk 0:02:03]} 24... Qxb3 {[%clk
0:00:10.8]} 25. Bd4 {[%clk 0:02:00]} 25... Qe6 {[%clk 0:00:10.7]} 26. Rc6 {[%clk
0:01:55.6]} 26... Qd5 {[%clk 0:00:08.5]} 27. Rec1 {[%clk 0:01:45.4]} 27... e6
{[%clk 0:00:08.7]} 28. R6c5 {[%clk 0:01:39.6]} 28... Qd7 {[%clk 0:00:08.7]} 29.
Qxh5 {[%clk 0:01:38]} 29... b4 {[%clk 0:00:05.6]} 30. axb4 {[%clk 0:01:37.1]}
30... axb4 {[%clk 0:00:06.6]} 31. Nf6+ {[%clk 0:01:38.5]} 31... Nxf6 {[%clk
0:00:07.3]} 32. exf6 {[%clk 0:01:39.2]} 1-0